[Event "Titled Tuesday Blitz June 14 Early 2022"]
[White "Kosakowski, Jakub"]
[Black "Harvey, Marcus R"]
[WhiteFideId "1185080"]
[BlackFideId "400092"]
[WhiteElo "2476"]
[BlackElo "2485"]
[Result "1-0"]
[Round "06"]
[TimeControl "180+1"]
[Date "2022.06.14"]
[WhiteClock "0:00:35"]
[BlackClock "0:00:03"]

1. Nf3 {[%clk 0:03:00]}  d5 {[%clk 0:02:58]} 2. b3 {[%clk 0:03:00]}  Nf6 {[%clk 0:02:56]} 3. Bb2 {[%clk 0:03:00]}  e6 {[%clk 0:02:57]} 4. e3 {[%clk 0:03:01]}  Bd6 {[%clk 0:02:57]} 5. d4 {[%clk 0:03:01]}  b6 {[%clk 0:02:56]} 6. Bd3 {[%clk 0:03:02]}  Bb7 {[%clk 0:02:55]} 7. O-O {[%clk 0:03:02]}  Nbd7 {[%clk 0:02:55]} 8. Nbd2 {[%clk 0:03:03]}  a6 {[%clk 0:02:55]} 9. Ne5 {[%clk 0:03:02]}  Qe7 {[%clk 0:02:55]} 10. f4 {[%clk 0:03:01]}  Ne4 {[%clk 0:02:54]} 11. c4 {[%clk 0:02:58]}  Ndf6 {[%clk 0:02:34]} 12. Rc1 {[%clk 0:02:57]}  c5 {[%clk 0:02:32]} 13. cxd5 {[%clk 0:02:42]}  exd5 {[%clk 0:02:32]} 14. Nxe4 {[%clk 0:02:37]}  dxe4 {[%clk 0:02:27]} 15. Bc4 {[%clk 0:02:20]}  O-O {[%clk 0:02:27]} 16. Ng4 {[%clk 0:02:12]}  Ne8 {[%clk 0:00:57]} 17. dxc5 {[%clk 0:01:59]}  Bxc5 {[%clk 0:00:55]} 18. Nh6+ {[%clk 0:01:59]}  Kh8 {[%clk 0:00:56]} 19. Nf5 {[%clk 0:01:58]}  Qd8 {[%clk 0:00:30]} 20. Qg4 {[%clk 0:01:53]}  f6 {[%clk 0:00:31]} 21. b4 {[%clk 0:01:47]}  b5 {[%clk 0:00:22]} 22. Rfd1 {[%clk 0:01:43]}  Bd6 {[%clk 0:00:17]} 23. Rxd6 {[%clk 0:01:41]}  Qb8 {[%clk 0:00:07]} 24. Bb3 {[%clk 0:01:38]}  Bc8 {[%clk 0:00:07]} 25. Rdc6 {[%clk 0:01:32]}  Bd7 {[%clk 0:00:06]} 26. Be6 {[%clk 0:01:12]}  Bxc6 {[%clk 0:00:06]} 27. Rxc6 {[%clk 0:01:13]}  Qb7 {[%clk 0:00:07]} 28. Bd5 {[%clk 0:01:04]}  Qd7 {[%clk 0:00:06]} 29. Bxe4 {[%clk 0:01:01]}  Rd8 {[%clk 0:00:05]} 30. Qe2 {[%clk 0:00:43]}  Qd1+ {[%clk 0:00:04]} 31. Qf1 {[%clk 0:00:35]}  Qxf1+ {[%clk 0:00:03]} 32. Kxf1 {[%clk 0:00:35]} 1-0


[Site "https://www.chess.com"]

[Event "Titled Tuesday Blitz June 14 Early 2022"]
[White "Kowalczyk, Pawel"]
[Black "Stribuk, Artiom"]
[WhiteFideId "1130641"]
[BlackFideId "13515659"]
[WhiteElo "2344"]
[BlackElo "2259"]
[Result "1/2-1/2"]
[Round "06"]
[TimeControl "180+1"]
[Date "2022.06.14"]
[WhiteClock "0:00:21"]
[BlackClock "0:00:06"]

1. e4 {[%clk 0:03:00]}  c5 {[%clk 0:02:58]} 2. Ne2 {[%clk 0:03:00]}  Nc6 {[%clk 0:02:58]} 3. g3 {[%clk 0:03:00]}  g6 {[%clk 0:02:58]} 4. Bg2 {[%clk 0:03:01]}  Bg7 {[%clk 0:02:58]} 5. c3 {[%clk 0:03:02]}  e5 {[%clk 0:02:51]} 6. O-O {[%clk 0:03:02]}  d6 {[%clk 0:02:49]} 7. Na3 {[%clk 0:03:02]}  Nge7 {[%clk 0:02:47]} 8. Nc2 {[%clk 0:03:02]}  O-O {[%clk 0:02:14]} 9. d4 {[%clk 0:03:02]}  exd4 {[%clk 0:02:13]} 10. cxd4 {[%clk 0:03:02]}  Bg4 {[%clk 0:02:13]} 11. f3 {[%clk 0:03:01]}  Bd7 {[%clk 0:02:10]} 12. Bf4 {[%clk 0:02:57]}  d5 {[%clk 0:02:02]} 13. dxc5 {[%clk 0:02:53]}  dxe4 {[%clk 0:02:01]} 14. fxe4 {[%clk 0:02:53]}  Bg4 {[%clk 0:02:01]} 15. Bd6 {[%clk 0:02:49]}  Bxb2 {[%clk 0:01:56]} 16. Rb1 {[%clk 0:02:49]}  Be5 {[%clk 0:01:55]} 17. Rxb7 {[%clk 0:02:47]}  Bxe2 {[%clk 0:01:54]} 18. Qxe2 {[%clk 0:02:34]}  Bxd6 {[%clk 0:01:54]} 19. cxd6 {[%clk 0:02:34]}  Qxd6 {[%clk 0:01:55]} 20. Rd1 {[%clk 0:02:29]}  Qc5+ {[%clk 0:01:53]} 21. Qf2 {[%clk 0:02:29]}  Qe5 {[%clk 0:01:35]} 22. Ne3 {[%clk 0:02:27]}  Rab8 {[%clk 0:01:27]} 23. Rxb8 {[%clk 0:02:11]}  Rxb8 {[%clk 0:01:25]} 24. Rf1 {[%clk 0:02:08]}  Rf8 {[%clk 0:01:21]} 25. Nd5 {[%clk 0:02:07]}  Kg7 {[%clk 0:01:09]} 26. Rb1 {[%clk 0:01:55]}  Nc8 {[%clk 0:00:52]} 27. Rc1 {[%clk 0:01:49]}  Nd4 {[%clk 0:00:44]} 28. Rc7 {[%clk 0:01:44]}  Ne6 {[%clk 0:00:43]} 29. Rb7 {[%clk 0:01:41]}  a5 {[%clk 0:00:37]} 30. h4 {[%clk 0:01:41]}  h5 {[%clk 0:00:37]} 31. a4 {[%clk 0:01:37]}  Nd6 {[%clk 0:00:36]} 32. Qb2 {[%clk 0:01:30]}  Qxb2 {[%clk 0:00:32]} 33. Rxb2 {[%clk 0:01:31]}  Nc5 {[%clk 0:00:31]} 34. Rb6 {[%clk 0:01:21]}  Rd8 {[%clk 0:00:23]} 35. e5 {[%clk 0:01:17]}  Nf5 {[%clk 0:00:22]} 36. Rb5 {[%clk 0:01:14]}  Nxa4 {[%clk 0:00:20]} 37. Rxa5 {[%clk 0:01:15]}  Nb2 {[%clk 0:00:21]} 38. Ra7 {[%clk 0:01:12]}  Kf8 {[%clk 0:00:18]} 39. Nf4 {[%clk 0:01:10]}  Nd3 {[%clk 0:00:10]} 40. e6 {[%clk 0:01:05]}  Ne7 {[%clk 0:00:05]} 41. Nxd3 {[%clk 0:00:52]}  Rxd3 {[%clk 0:00:06]} 42. Ra8+ {[%clk 0:00:52]}  Kg7 {[%clk 0:00:06]} 43. exf7 {[%clk 0:00:47]}  Kxf7 {[%clk 0:00:07]} 44. Kf2 {[%clk 0:00:44]}  Nf5 {[%clk 0:00:06]} 45. Ra7+ {[%clk 0:00:43]}  Kf6 {[%clk 0:00:05]} 46. Ra6+ {[%clk 0:00:43]}  Rd6 {[%clk 0:00:03]} 47. Ra3 {[%clk 0:00:41]}  Nd4 {[%clk 0:00:03]} 48. Be4 {[%clk 0:00:39]}  Nf5 {[%clk 0:00:02]} 49. Kf3 {[%clk 0:00:37]}  Ne7 {[%clk 0:00:03]} 50. Ra8 {[%clk 0:00:36]}  Nf5 {[%clk 0:00:04]} 51. Kf4 {[%clk 0:00:35]}  Ne7 {[%clk 0:00:04]} 52. Re8 {[%clk 0:00:34]}  Re6 {[%clk 0:00:04]} 53. Ra8 {[%clk 0:00:32]}  Rd6 {[%clk 0:00:04]} 54. Rf8+ {[%clk 0:00:30]}  Kg7 {[%clk 0:00:04]} 55. Re8 {[%clk 0:00:29]}  Kf6 {[%clk 0:00:05]} 56. Rf8+ {[%clk 0:00:28]}  Kg7 {[%clk 0:00:05]} 57. Rb8 {[%clk 0:00:28]}  Kf6 {[%clk 0:00:05]} 58. Rb5 {[%clk 0:00:28]}  Re6 {[%clk 0:00:05]} 59. Rg5 {[%clk 0:00:27]}  Rd6 {[%clk 0:00:05]} 60. Ra5 {[%clk 0:00:27]}  Re6 {[%clk 0:00:05]} 61. Bf3 {[%clk 0:00:23]}  Rd6 {[%clk 0:00:05]} 62. Be4 {[%clk 0:00:23]}  Re6 {[%clk 0:00:05]} 63. Ra4 {[%clk 0:00:23]}  Rd6 {[%clk 0:00:06]} 64. g4 {[%clk 0:00:23]}  hxg4 {[%clk 0:00:06]} 65. Kxg4 {[%clk 0:00:24]}  Re6 {[%clk 0:00:06]} 66. Kf4 {[%clk 0:00:25]}  Rd6 {[%clk 0:00:07]} 67. Ra7 {[%clk 0:00:25]}  Re6 {[%clk 0:00:07]} 68. Bf3 {[%clk 0:00:25]}  Rd6 {[%clk 0:00:07]} 69. Bg4 {[%clk 0:00:25]}  Rd4+ {[%clk 0:00:07]} 70. Kg3 {[%clk 0:00:25]}  Rd3+ {[%clk 0:00:07]} 71. Kg2 {[%clk 0:00:25]}  Rd2+ {[%clk 0:00:05]} 72. Kf3 {[%clk 0:00:25]}  Rd3+ {[%clk 0:00:05]} 73. Ke4 {[%clk 0:00:25]}  Rd6 {[%clk 0:00:05]} 74. Ra8 {[%clk 0:00:24]}  Rc6 {[%clk 0:00:05]} 75. Rf8+ {[%clk 0:00:23]}  Kg7 {[%clk 0:00:05]} 76. Rf1 {[%clk 0:00:22]}  Rc4+ {[%clk 0:00:05]} 77. Kf3 {[%clk 0:00:22]}  Nd5 {[%clk 0:00:05]} 78. Kg3 {[%clk 0:00:20]}  Rxg4+ {[%clk 0:00:05]} 79. Kxg4 {[%clk 0:00:19]}  Ne3+ {[%clk 0:00:06]} 80. Kg5 {[%clk 0:00:19]}  Nxf1 {[%clk 0:00:06]} 81. h5 {[%clk 0:00:20]}  gxh5 {[%clk 0:00:06]} 82. Kxh5 {[%clk 0:00:21]} 1/2-1/2


[Site "https://www.chess.com"]

[Event "Titled Tuesday Blitz June 14 Early 2022"]
[White "Lamaze, Simon"]
[Black "Babazada, Khazar"]
[WhiteFideId "36069264"]
[BlackFideId "13413554"]
[WhiteElo "2090"]
[BlackElo "2406"]
[Result "1/2-1/2"]
[Round "06"]
[TimeControl "180+1"]
[Date "2022.06.14"]
[WhiteClock "0:00:14"]
[BlackClock "0:00:06"]

1. d4 {[%clk 0:02:59]}  Nf6 {[%clk 0:03:00]} 2. c4 {[%clk 0:02:50]}  g6 {[%clk 0:03:00]} 3. Nc3 {[%clk 0:02:35]}  d6 {[%clk 0:03:00]} 4. e4 {[%clk 0:02:30]}  Bg7 {[%clk 0:03:00]} 5. h3 {[%clk 0:02:31]}  O-O {[%clk 0:03:00]} 6. Be3 {[%clk 0:02:31]}  e5 {[%clk 0:03:00]} 7. d5 {[%clk 0:02:31]}  Na6 {[%clk 0:03:00]} 8. g4 {[%clk 0:02:30]}  Nc5 {[%clk 0:03:00]} 9. f3 {[%clk 0:02:31]}  a5 {[%clk 0:03:00]} 10. h4 {[%clk 0:02:30]}  c6 {[%clk 0:03:00]} 11. Rh2 {[%clk 0:02:25]}  cxd5 {[%clk 0:02:59]} 12. cxd5 {[%clk 0:02:25]}  h5 {[%clk 0:02:58]} 13. g5 {[%clk 0:02:25]}  Ne8 {[%clk 0:02:55]} 14. Nh3 {[%clk 0:02:25]}  Bd7 {[%clk 0:02:52]} 15. Kf2 {[%clk 0:02:03]}  f5 {[%clk 0:02:51]} 16. gxf6 {[%clk 0:01:49]}  Nxf6 {[%clk 0:02:51]} 17. Kg1 {[%clk 0:01:47]}  Kh8 {[%clk 0:02:34]} 18. Ng5 {[%clk 0:01:47]}  Nh7 {[%clk 0:02:28]} 19. Rg2 {[%clk 0:01:44]}  Nxg5 {[%clk 0:02:19]} 20. Bxg5 {[%clk 0:01:45]}  Bf6 {[%clk 0:02:19]} 21. Be2 {[%clk 0:01:30]}  Bxg5 {[%clk 0:02:03]} 22. Rxg5 {[%clk 0:01:31]}  Rf4 {[%clk 0:02:04]} 23. Qe1 {[%clk 0:01:27]}  Kh7 {[%clk 0:02:03]} 24. Qg3 {[%clk 0:01:27]}  Be8 {[%clk 0:02:00]} 25. Kh2 {[%clk 0:01:24]}  Bf7 {[%clk 0:01:46]} 26. Rg1 {[%clk 0:01:22]}  Qf6 {[%clk 0:01:46]} 27. Nd1 {[%clk 0:00:56]}  Rf8 {[%clk 0:01:37]} 28. Ne3 {[%clk 0:00:56]}  Be8 {[%clk 0:01:37]} 29. Ng2 {[%clk 0:00:37]}  Rxf3 {[%clk 0:01:31]} 30. Bxf3 {[%clk 0:00:38]}  Qxf3 {[%clk 0:01:31]} 31. Qxf3 {[%clk 0:00:38]}  Rxf3 {[%clk 0:01:32]} 32. Rg3 {[%clk 0:00:33]}  Rf2 {[%clk 0:01:22]} 33. Re3 {[%clk 0:00:30]}  Rxb2 {[%clk 0:01:18]} 34. a3 {[%clk 0:00:28]}  b5 {[%clk 0:01:19]} 35. Rf1 {[%clk 0:00:25]}  Kg7 {[%clk 0:01:17]} 36. Kg3 {[%clk 0:00:24]}  b4 {[%clk 0:01:15]} 37. axb4 {[%clk 0:00:24]}  axb4 {[%clk 0:01:16]} 38. Ra1 {[%clk 0:00:23]}  Bb5 {[%clk 0:01:07]} 39. Ra7+ {[%clk 0:00:23]}  Kh6 {[%clk 0:01:08]} 40. Ne1 {[%clk 0:00:21]}  b3 {[%clk 0:01:01]} 41. Nf3 {[%clk 0:00:21]}  Bd7 {[%clk 0:00:44]} 42. Ng5 {[%clk 0:00:19]}  Rb1 {[%clk 0:00:44]} 43. Rf3 {[%clk 0:00:17]}  b2 {[%clk 0:00:39]} 44. Rf7 {[%clk 0:00:17]}  Rg1+ {[%clk 0:00:39]} 45. Kh2 {[%clk 0:00:17]}  Rxg5 {[%clk 0:00:23]} 46. hxg5+ {[%clk 0:00:18]}  Kxg5 {[%clk 0:00:21]} 47. Rf1 {[%clk 0:00:19]}  Bg4 {[%clk 0:00:16]} 48. Rb1 {[%clk 0:00:19]}  Kf4 {[%clk 0:00:13]} 49. Rxb2 {[%clk 0:00:19]}  Nxe4 {[%clk 0:00:13]} 50. Ra6 {[%clk 0:00:18]}  Bf3 {[%clk 0:00:13]} 51. Ra7 {[%clk 0:00:18]}  g5 {[%clk 0:00:13]} 52. Rf7+ {[%clk 0:00:18]}  Kg4 {[%clk 0:00:13]} 53. Rb1 {[%clk 0:00:18]}  h4 {[%clk 0:00:11]} 54. Rg1+ {[%clk 0:00:18]}  Ng3 {[%clk 0:00:12]} 55. Rf6 {[%clk 0:00:18]}  e4 {[%clk 0:00:09]} 56. Rxd6 {[%clk 0:00:18]}  e3 {[%clk 0:00:10]} 57. Rd7 {[%clk 0:00:18]}  e2 {[%clk 0:00:10]} 58. d6 {[%clk 0:00:19]}  Kf4 {[%clk 0:00:10]} 59. Re1 {[%clk 0:00:19]}  Ke3 {[%clk 0:00:08]} 60. Re7+ {[%clk 0:00:19]}  Kf2 {[%clk 0:00:09]} 61. d7 {[%clk 0:00:19]}  Kxe1 {[%clk 0:00:08]} 62. d8=Q {[%clk 0:00:20]}  g4 {[%clk 0:00:09]} 63. Qa5+ {[%clk 0:00:20]}  Kf2 {[%clk 0:00:09]} 64. Qb6+ {[%clk 0:00:19]}  Kf1 {[%clk 0:00:09]} 65. Qe3 {[%clk 0:00:20]}  Ne4 {[%clk 0:00:07]} 66. Rxe4 {[%clk 0:00:19]}  Bxe4 {[%clk 0:00:07]} 67. Qf4+ {[%clk 0:00:20]}  Bf3 {[%clk 0:00:08]} 68. Qc4 {[%clk 0:00:20]}  g3+ {[%clk 0:00:07]} 69. Kh3 {[%clk 0:00:20]}  g2 {[%clk 0:00:07]} 70. Qd3 {[%clk 0:00:18]}  g1=N+ {[%clk 0:00:07]} 71. Kh2 {[%clk 0:00:18]}  Bg4 {[%clk 0:00:06]} 72. Qc4 {[%clk 0:00:17]}  Nf3+ {[%clk 0:00:06]} 73. Kh1 {[%clk 0:00:17]}  Kf2 {[%clk 0:00:06]} 74. Qc5+ {[%clk 0:00:17]}  Kg3 {[%clk 0:00:06]} 75. Qc7+ {[%clk 0:00:17]}  Kh3 {[%clk 0:00:06]} 76. Qg3+ {[%clk 0:00:14]}  hxg3 {[%clk 0:00:06]} 1/2-1/2


[Site "https://www.chess.com"]

[Event "Titled Tuesday Blitz June 14 Early 2022"]
[White "Lazavik, Denis"]
[Black "Lashkin, Jegor"]
[WhiteFideId "13515110"]
[BlackFideId "13907808"]
[WhiteElo "2437"]
[BlackElo "2368"]
[Result "1-0"]
[Round "06"]
[TimeControl "180+1"]
[Date "2022.06.14"]
[WhiteClock "0:00:04"]
[BlackClock "0:00:05"]

1. d4 {[%clk 0:03:00]}  Nf6 {[%clk 0:02:59]} 2. c4 {[%clk 0:03:01]}  e6 {[%clk 0:03:00]} 3. Nf3 {[%clk 0:03:01]}  d5 {[%clk 0:02:59]} 4. g3 {[%clk 0:03:02]}  dxc4 {[%clk 0:03:00]} 5. Bg2 {[%clk 0:03:02]}  c6 {[%clk 0:03:00]} 6. a4 {[%clk 0:03:01]}  Bb4+ {[%clk 0:02:59]} 7. Bd2 {[%clk 0:03:01]}  a5 {[%clk 0:02:54]} 8. Qc2 {[%clk 0:03:00]}  O-O {[%clk 0:02:42]} 9. Qxc4 {[%clk 0:02:56]}  Bxd2+ {[%clk 0:02:29]} 10. Nbxd2 {[%clk 0:02:55]}  b6 {[%clk 0:02:29]} 11. Qc2 {[%clk 0:02:20]}  Ba6 {[%clk 0:02:25]} 12. Nc4 {[%clk 0:02:20]}  Nbd7 {[%clk 0:02:01]} 13. O-O {[%clk 0:02:18]}  Rc8 {[%clk 0:01:59]} 14. Rfd1 {[%clk 0:01:21]}  Qe7 {[%clk 0:01:53]} 15. Nfe5 {[%clk 0:01:17]}  Nd5 {[%clk 0:01:46]} 16. Nxd7 {[%clk 0:00:45]}  Qxd7 {[%clk 0:01:45]} 17. Qb3 {[%clk 0:00:44]}  Rb8 {[%clk 0:01:11]} 18. Rac1 {[%clk 0:00:39]}  Rfc8 {[%clk 0:01:09]} 19. Ne5 {[%clk 0:00:35]}  Qe8 {[%clk 0:01:08]} 20. e4 {[%clk 0:00:28]}  Nb4 {[%clk 0:01:08]} 21. Qe3 {[%clk 0:00:27]}  Na2 {[%clk 0:00:34]} 22. Rc2 {[%clk 0:00:23]}  Nb4 {[%clk 0:00:34]} 23. Rcd2 {[%clk 0:00:24]}  Rd8 {[%clk 0:00:29]} 24. h4 {[%clk 0:00:23]}  Qe7 {[%clk 0:00:21]} 25. f4 {[%clk 0:00:21]}  Rd6 {[%clk 0:00:17]} 26. h5 {[%clk 0:00:12]}  h6 {[%clk 0:00:13]} 27. g4 {[%clk 0:00:12]}  Rbd8 {[%clk 0:00:13]} 28. g5 {[%clk 0:00:12]}  c5 {[%clk 0:00:09]} 29. gxh6 {[%clk 0:00:12]}  gxh6 {[%clk 0:00:06]} 30. Ng4 {[%clk 0:00:04]}  Kg7 {[%clk 0:00:03]} 31. Qg3 {[%clk 0:00:04]}  Kh7 {[%clk 0:00:03]} 32. e5 {[%clk 0:00:04]}  Rxd4 {[%clk 0:00:03]} 33. Rxd4 {[%clk 0:00:03]}  Rxd4 {[%clk 0:00:04]} 34. Rxd4 {[%clk 0:00:04]}  cxd4 {[%clk 0:00:05]} 35. Nf6+ {[%clk 0:00:04]} 1-0


[Site "https://www.chess.com"]

[Event "Titled Tuesday Blitz June 14 Early 2022"]
[White "Matlakov, Maxim"]
[Black "Maximov, Dmitry"]
[WhiteFideId "4168003"]
[BlackFideId "14105659"]
[WhiteElo "2669"]
[BlackElo "2494"]
[Result "0-1"]
[Round "06"]
[TimeControl "180+1"]
[Date "2022.06.14"]
[WhiteClock "0:00:25"]
[BlackClock "0:01:12"]

1. d4 {[%clk 0:03:00]}  Nf6 {[%clk 0:02:57]} 2. Nc3 {[%clk 0:03:01]}  d5 {[%clk 0:02:56]} 3. Bf4 {[%clk 0:03:01]}  c6 {[%clk 0:02:56]} 4. e3 {[%clk 0:03:01]}  Bf5 {[%clk 0:02:56]} 5. f3 {[%clk 0:02:59]}  h6 {[%clk 0:02:55]} 6. g4 {[%clk 0:02:56]}  Bh7 {[%clk 0:02:55]} 7. h4 {[%clk 0:02:56]}  h5 {[%clk 0:02:50]} 8. g5 {[%clk 0:02:52]}  Nfd7 {[%clk 0:02:51]} 9. Bd3 {[%clk 0:02:50]}  Bxd3 {[%clk 0:02:50]} 10. Qxd3 {[%clk 0:02:51]}  g6 {[%clk 0:02:50]} 11. O-O-O {[%clk 0:02:50]}  Bg7 {[%clk 0:02:51]} 12. e4 {[%clk 0:02:49]}  O-O {[%clk 0:02:37]} 13. exd5 {[%clk 0:02:38]}  cxd5 {[%clk 0:02:37]} 14. Nxd5 {[%clk 0:02:38]}  Nc6 {[%clk 0:02:38]} 15. Ne2 {[%clk 0:02:32]}  Qa5 {[%clk 0:02:28]} 16. Qb3 {[%clk 0:02:20]}  Nb6 {[%clk 0:02:03]} 17. Nxb6 {[%clk 0:01:45]}  axb6 {[%clk 0:02:03]} 18. a3 {[%clk 0:01:44]}  Qa6 {[%clk 0:02:02]} 19. Qd3 {[%clk 0:01:37]}  b5 {[%clk 0:01:52]} 20. Rhe1 {[%clk 0:01:37]}  Rfd8 {[%clk 0:01:50]} 21. d5 {[%clk 0:01:35]}  Rxd5 {[%clk 0:01:26]} 22. Qxd5 {[%clk 0:01:30]}  Bxb2+ {[%clk 0:01:25]} 23. Kb1 {[%clk 0:00:42]}  Qxa3 {[%clk 0:01:24]} 24. c3 {[%clk 0:00:42]}  b4 {[%clk 0:01:25]} 25. Bc1 {[%clk 0:00:34]}  bxc3 {[%clk 0:01:20]} 26. Nxc3 {[%clk 0:00:34]}  Qa1+ {[%clk 0:01:15]} 27. Kc2 {[%clk 0:00:34]}  Nb4+ {[%clk 0:01:13]} 28. Kb3 {[%clk 0:00:24]}  Qa3+ {[%clk 0:01:12]} 29. Kc4 {[%clk 0:00:25]}  Qxc3+ {[%clk 0:01:12]} 0-1


[Site "https://www.chess.com"]

[Event "Titled Tuesday Blitz June 14 Early 2022"]
[White "Pranav Anand"]
[Black "Adla, Diego"]
[WhiteFideId "46626786"]
[BlackFideId "100072"]
[WhiteElo "2259"]
[BlackElo "2377"]
[Result "1-0"]
[Round "06"]
[TimeControl "180+1"]
[Date "2022.06.14"]
[WhiteClock "0:00:33"]
[BlackClock "0:01:12"]

1. Nf3 {[%clk 0:03:00]}  d5 {[%clk 0:02:59]} 2. g3 {[%clk 0:03:00]}  Nd7 {[%clk 0:02:59]} 3. d4 {[%clk 0:02:58]}  Nb6 {[%clk 0:02:58]} 4. Bg2 {[%clk 0:02:59]}  Bf5 {[%clk 0:02:56]} 5. O-O {[%clk 0:02:59]}  e6 {[%clk 0:02:56]} 6. a4 {[%clk 0:02:58]}  a5 {[%clk 0:02:40]} 7. b3 {[%clk 0:02:57]}  Be7 {[%clk 0:02:37]} 8. Ba3 {[%clk 0:02:56]}  h6 {[%clk 0:02:30]} 9. Ne5 {[%clk 0:02:51]}  Nf6 {[%clk 0:02:27]} 10. c4 {[%clk 0:02:42]}  O-O {[%clk 0:02:21]} 11. Bxe7 {[%clk 0:02:38]}  Qxe7 {[%clk 0:02:21]} 12. Nd2 {[%clk 0:02:37]}  c6 {[%clk 0:02:08]} 13. Qc1 {[%clk 0:02:27]}  Rfd8 {[%clk 0:02:08]} 14. c5 {[%clk 0:02:27]}  Nbd7 {[%clk 0:02:05]} 15. Nxd7 {[%clk 0:02:26]}  Nxd7 {[%clk 0:02:03]} 16. f4 {[%clk 0:02:25]}  b6 {[%clk 0:01:59]} 17. cxb6 {[%clk 0:02:24]}  Qb4 {[%clk 0:01:58]} 18. Nf3 {[%clk 0:02:19]}  Qxb6 {[%clk 0:01:57]} 19. Qc3 {[%clk 0:02:18]}  Rdc8 {[%clk 0:01:57]} 20. Rfc1 {[%clk 0:02:14]}  c5 {[%clk 0:01:56]} 21. Kh1 {[%clk 0:02:09]}  Rc7 {[%clk 0:01:54]} 22. Ne5 {[%clk 0:02:01]}  c4 {[%clk 0:01:47]} 23. Nxd7 {[%clk 0:01:55]}  Rxd7 {[%clk 0:01:45]} 24. bxc4 {[%clk 0:01:56]}  Qb4 {[%clk 0:01:42]} 25. c5 {[%clk 0:01:53]}  Rb8 {[%clk 0:01:42]} 26. e3 {[%clk 0:01:52]}  Rdb7 {[%clk 0:01:39]} 27. Ra3 {[%clk 0:01:31]}  h5 {[%clk 0:01:36]} 28. h3 {[%clk 0:01:30]}  f6 {[%clk 0:01:29]} 29. Kh2 {[%clk 0:01:28]}  g5 {[%clk 0:01:28]} 30. c6 {[%clk 0:01:12]}  Rc7 {[%clk 0:01:27]} 31. Qa1 {[%clk 0:00:59]}  h4 {[%clk 0:01:25]} 32. gxh4 {[%clk 0:00:58]}  gxf4 {[%clk 0:01:25]} 33. exf4 {[%clk 0:00:59]}  Rb6 {[%clk 0:01:21]} 34. Rg3+ {[%clk 0:00:58]}  Kh7 {[%clk 0:01:20]} 35. Qc3 {[%clk 0:00:33]}  Qxa4 {[%clk 0:01:20]} 36. Qf3 {[%clk 0:00:33]}  Bg6 {[%clk 0:01:12]} 37. Qg4 {[%clk 0:00:33]} 1-0


[Site "https://www.chess.com"]

[Event "Titled Tuesday Blitz June 14 Early 2022"]
[White "Priasmoro, Novendra"]
[Black "Paravyan, David"]
[WhiteFideId "7105029"]
[BlackFideId "4194985"]
[WhiteElo "2309"]
[BlackElo "2569"]
[Result "0-1"]
[Round "06"]
[TimeControl "180+1"]
[Date "2022.06.14"]
[WhiteClock "0:00:46"]
[BlackClock "0:00:58"]

1. Nf3 {[%clk 0:03:00]}  Nf6 {[%clk 0:02:59]} 2. g3 {[%clk 0:03:01]}  c5 {[%clk 0:02:59]} 3. Bg2 {[%clk 0:03:02]}  Nc6 {[%clk 0:02:52]} 4. d4 {[%clk 0:03:02]}  cxd4 {[%clk 0:02:52]} 5. Nxd4 {[%clk 0:03:03]}  e5 {[%clk 0:02:50]} 6. Nxc6 {[%clk 0:03:00]}  dxc6 {[%clk 0:02:47]} 7. Qxd8+ {[%clk 0:03:01]}  Kxd8 {[%clk 0:02:48]} 8. O-O {[%clk 0:03:02]}  Kc7 {[%clk 0:02:44]} 9. Nd2 {[%clk 0:03:02]}  Bf5 {[%clk 0:02:32]} 10. Nc4 {[%clk 0:03:00]}  Nd7 {[%clk 0:02:30]} 11. c3 {[%clk 0:02:58]}  Be6 {[%clk 0:02:29]} 12. Na5 {[%clk 0:02:56]}  Bc5 {[%clk 0:02:22]} 13. Rd1 {[%clk 0:02:44]}  Bb6 {[%clk 0:02:16]} 14. Nb3 {[%clk 0:02:41]}  Rad8 {[%clk 0:02:12]} 15. Bd2 {[%clk 0:02:41]}  h5 {[%clk 0:02:05]} 16. h4 {[%clk 0:02:40]}  Nf6 {[%clk 0:02:03]} 17. Bg5 {[%clk 0:02:39]}  Rxd1+ {[%clk 0:02:02]} 18. Rxd1 {[%clk 0:02:40]}  Ng4 {[%clk 0:02:03]} 19. Rf1 {[%clk 0:02:28]}  f6 {[%clk 0:02:03]} 20. Bc1 {[%clk 0:02:27]}  Rd8 {[%clk 0:02:02]} 21. e3 {[%clk 0:02:01]}  a5 {[%clk 0:01:54]} 22. Bf3 {[%clk 0:01:50]}  a4 {[%clk 0:01:52]} 23. Na1 {[%clk 0:01:46]}  Bxa2 {[%clk 0:01:51]} 24. Be2 {[%clk 0:01:42]}  e4 {[%clk 0:01:40]} 25. Rd1 {[%clk 0:01:40]}  Bc5 {[%clk 0:01:33]} 26. Rxd8 {[%clk 0:01:34]}  Kxd8 {[%clk 0:01:34]} 27. Nc2 {[%clk 0:01:34]}  Kd7 {[%clk 0:01:25]} 28. Nd4 {[%clk 0:01:33]}  b5 {[%clk 0:01:23]} 29. Bd1 {[%clk 0:01:28]}  Bd5 {[%clk 0:01:20]} 30. Bc2 {[%clk 0:01:27]}  g6 {[%clk 0:01:19]} 31. Kf1 {[%clk 0:01:25]}  Ne5 {[%clk 0:01:18]} 32. Ke2 {[%clk 0:01:23]}  Bc4+ {[%clk 0:01:17]} 33. Ke1 {[%clk 0:01:21]}  f5 {[%clk 0:01:17]} 34. Ne2 {[%clk 0:01:17]}  Bd3 {[%clk 0:01:07]} 35. Bd1 {[%clk 0:01:08]}  Nf3+ {[%clk 0:01:06]} 36. Kf1 {[%clk 0:01:09]}  Bc4 {[%clk 0:01:06]} 37. Bc2 {[%clk 0:00:55]}  Bd6 {[%clk 0:01:06]} 38. Bd1 {[%clk 0:00:53]}  Be5 {[%clk 0:01:05]} 39. Bc2 {[%clk 0:00:51]}  c5 {[%clk 0:01:05]} 40. Bd1 {[%clk 0:00:50]}  Kc6 {[%clk 0:01:05]} 41. Bc2 {[%clk 0:00:51]}  Bd3 {[%clk 0:01:03]} 42. Bd1 {[%clk 0:00:51]}  Kb6 {[%clk 0:01:01]} 43. Kg2 {[%clk 0:00:51]}  Bc4 {[%clk 0:00:58]} 44. Nf4 {[%clk 0:00:51]}  Ne1+ {[%clk 0:00:58]} 45. Kg1 {[%clk 0:00:49]}  Bxf4 {[%clk 0:00:58]} 46. exf4 {[%clk 0:00:47]}  Nd3 {[%clk 0:00:59]} 47. Be3 {[%clk 0:00:46]}  Nxb2 {[%clk 0:00:59]} 48. Bc1 {[%clk 0:00:46]}  Nxd1 {[%clk 0:00:58]} 0-1


[Site "https://www.chess.com"]